[Event "Titled Tuesday Blitz October 5 2021"]
[White "Siva Mahadevan"]
[Black "King, Alexander"]
[WhiteFideId "25043153"]
[BlackFideId "2063620"]
[WhiteElo "2203"]
[BlackElo "2306"]
[Result "1-0"]
[Round "02"]
[TimeControl "180+1"]
[Date "2021.10.05"]
[WhiteClock "0:00:50"]
[BlackClock "0:00:02"]

1. e4 {[%clk 0:03:00]}  c5 {[%clk 0:02:58]} 2. Nf3 {[%clk 0:03:01]}  e6 {[%clk 0:02:59]} 3. d4 {[%clk 0:03:01]}  cxd4 {[%clk 0:03:00]} 4. Nxd4 {[%clk 0:03:01]}  a6 {[%clk 0:03:00]} 5. Nc3 {[%clk 0:03:00]}  Qc7 {[%clk 0:03:00]} 6. Bd3 {[%clk 0:03:00]}  Nf6 {[%clk 0:03:00]} 7. O-O {[%clk 0:03:00]}  Bc5 {[%clk 0:02:58]} 8. Nb3 {[%clk 0:02:58]}  Be7 {[%clk 0:02:58]} 9. a4 {[%clk 0:02:58]}  Nc6 {[%clk 0:02:51]} 10. Qe2 {[%clk 0:02:56]}  d6 {[%clk 0:02:43]} 11. Bd2 {[%clk 0:02:55]}  b6 {[%clk 0:02:36]} 12. Rae1 {[%clk 0:02:54]}  Bb7 {[%clk 0:02:37]} 13. Kh1 {[%clk 0:02:54]}  Nb4 {[%clk 0:02:25]} 14. f4 {[%clk 0:02:53]}  Nd7 {[%clk 0:02:20]} 15. f5 {[%clk 0:02:46]}  Nxd3 {[%clk 0:01:58]} 16. cxd3 {[%clk 0:02:47]}  e5 {[%clk 0:01:52]} 17. Qg4 {[%clk 0:02:39]}  Bf6 {[%clk 0:01:42]} 18. Bg5 {[%clk 0:02:38]}  O-O {[%clk 0:01:39]} 19. Bxf6 {[%clk 0:02:33]}  Nxf6 {[%clk 0:01:39]} 20. Qh4 {[%clk 0:02:34]}  Qe7 {[%clk 0:01:30]} 21. Nd2 {[%clk 0:02:31]}  h6 {[%clk 0:01:23]} 22. Nc4 {[%clk 0:02:30]}  Qd8 {[%clk 0:01:16]} 23. Qf2 {[%clk 0:02:16]}  b5 {[%clk 0:01:15]} 24. axb5 {[%clk 0:02:16]}  axb5 {[%clk 0:01:16]} 25. Nxb5 {[%clk 0:02:17]}  Ra6 {[%clk 0:01:05]} 26. Ra1 {[%clk 0:02:15]}  Rxa1 {[%clk 0:00:59]} 27. Rxa1 {[%clk 0:02:16]}  d5 {[%clk 0:01:00]} 28. exd5 {[%clk 0:01:47]}  Qxd5 {[%clk 0:01:01]} 29. Nc3 {[%clk 0:01:46]}  Qxd3 {[%clk 0:00:53]} 30. Nxe5 {[%clk 0:01:46]}  Qd6 {[%clk 0:00:47]} 31. Nc4 {[%clk 0:01:44]}  Qc7 {[%clk 0:00:41]} 32. Ne3 {[%clk 0:01:40]}  Re8 {[%clk 0:00:40]} 33. Re1 {[%clk 0:01:39]}  Kh7 {[%clk 0:00:31]} 34. Kg1 {[%clk 0:01:39]}  Qb6 {[%clk 0:00:31]} 35. Re2 {[%clk 0:01:35]}  Ba6 {[%clk 0:00:30]} 36. Re1 {[%clk 0:01:29]}  Bb7 {[%clk 0:00:23]} 37. h3 {[%clk 0:01:27]}  Qc5 {[%clk 0:00:22]} 38. Kh2 {[%clk 0:01:25]}  Qe5+ {[%clk 0:00:21]} 39. Qg3 {[%clk 0:01:24]}  Qc5 {[%clk 0:00:19]} 40. Ng4 {[%clk 0:01:23]}  Nxg4+ {[%clk 0:00:19]} 41. hxg4 {[%clk 0:01:23]}  Rxe1 {[%clk 0:00:16]} 42. Qxe1 {[%clk 0:01:24]}  Qb4 {[%clk 0:00:17]} 43. Qe2 {[%clk 0:01:24]}  Bc6 {[%clk 0:00:16]} 44. Kh3 {[%clk 0:01:21]}  Qf4 {[%clk 0:00:13]} 45. Qd3 {[%clk 0:01:20]}  Qf2 {[%clk 0:00:08]} 46. Qe2 {[%clk 0:00:52]}  Bxg2+ {[%clk 0:00:08]} 47. Kh2 {[%clk 0:00:52]}  Qxe2 {[%clk 0:00:09]} 48. Nxe2 {[%clk 0:00:53]}  Bf3 {[%clk 0:00:10]} 49. Nd4 {[%clk 0:00:50]}  Bxg4 {[%clk 0:00:10]} 50. b4 {[%clk 0:00:50]}  g6 {[%clk 0:00:02]} 51. b5 {[%clk 0:00:50]} 1-0


[Site "https://www.chess.com"]

[Event "Titled Tuesday Blitz October 5 2021"]
[White "Sjugirov, Sanan"]
[Black "Korchmar, Vasiliy"]
[WhiteFideId "4189302"]
[BlackFideId "24131750"]
[WhiteElo "2654"]
[BlackElo "2370"]
[Result "1-0"]
[Round "02"]
[TimeControl "180+1"]
[Date "2021.10.05"]
[WhiteClock "0:00:03"]
[BlackClock "0:00:02"]

1. d4 {[%clk 0:03:00]}  d5 {[%clk 0:02:58]} 2. c4 {[%clk 0:02:58]}  c6 {[%clk 0:02:59]} 3. Nf3 {[%clk 0:02:58]}  Nf6 {[%clk 0:02:58]} 4. Nc3 {[%clk 0:02:58]}  a6 {[%clk 0:02:58]} 5. e3 {[%clk 0:02:52]}  e6 {[%clk 0:02:57]} 6. b3 {[%clk 0:02:41]}  Bb4 {[%clk 0:02:55]} 7. Bd2 {[%clk 0:02:41]}  O-O {[%clk 0:02:54]} 8. Bd3 {[%clk 0:02:40]}  Nbd7 {[%clk 0:02:54]} 9. O-O {[%clk 0:02:38]}  Qe7 {[%clk 0:02:53]} 10. Qc2 {[%clk 0:02:32]}  e5 {[%clk 0:02:49]} 11. cxd5 {[%clk 0:01:39]}  Bxc3 {[%clk 0:02:46]} 12. d6 {[%clk 0:01:37]}  Qe8 {[%clk 0:02:42]} 13. Bxc3 {[%clk 0:01:35]}  e4 {[%clk 0:02:42]} 14. Nd2 {[%clk 0:01:10]}  exd3 {[%clk 0:02:41]} 15. Qxd3 {[%clk 0:01:11]}  Qe6 {[%clk 0:02:31]} 16. Bb4 {[%clk 0:01:10]}  a5 {[%clk 0:02:11]} 17. Ba3 {[%clk 0:01:10]}  b5 {[%clk 0:02:11]} 18. Bc5 {[%clk 0:01:05]}  b4 {[%clk 0:02:04]} 19. Rfe1 {[%clk 0:01:01]}  Ba6 {[%clk 0:02:03]} 20. Qc2 {[%clk 0:01:01]}  Nd5 {[%clk 0:01:55]} 21. a3 {[%clk 0:00:39]}  Rfb8 {[%clk 0:01:37]} 22. e4 {[%clk 0:00:33]}  Nf4 {[%clk 0:01:36]} 23. Re3 {[%clk 0:00:29]}  Qg6 {[%clk 0:01:33]} 24. g3 {[%clk 0:00:24]}  Ne6 {[%clk 0:01:33]} 25. Nf3 {[%clk 0:00:19]}  Nexc5 {[%clk 0:00:58]} 26. dxc5 {[%clk 0:00:20]}  Rb5 {[%clk 0:00:58]} 27. axb4 {[%clk 0:00:19]}  axb4 {[%clk 0:00:57]} 28. Qd2 {[%clk 0:00:06]}  Qf6 {[%clk 0:00:44]} 29. e5 {[%clk 0:00:05]}  Qh6 {[%clk 0:00:38]} 30. Nd4 {[%clk 0:00:04]}  Rxc5 {[%clk 0:00:36]} 31. e6 {[%clk 0:00:04]}  fxe6 {[%clk 0:00:34]} 32. Qxb4 {[%clk 0:00:04]}  Qh3 {[%clk 0:00:20]} 33. Qe1 {[%clk 0:00:01]}  Rh5 {[%clk 0:00:20]} 34. Nf3 {[%clk 0:00:02]}  Bb7 {[%clk 0:00:08]} 35. Rxa8+ {[%clk 0:00:01]}  Bxa8 {[%clk 0:00:09]} 36. Rxe6 {[%clk 0:00:02]}  c5 {[%clk 0:00:05]} 37. Re8+ {[%clk 0:00:02]}  Nf8 {[%clk 0:00:05]} 38. Rxa8 {[%clk 0:00:03]}  Qf5 {[%clk 0:00:02]} 39. Qd1 {[%clk 0:00:03]}  Kh8 {[%clk 0:00:02]} 40. d7 {[%clk 0:00:03]} 1-0


[Site "https://www.chess.com"]

[Event "Titled Tuesday Blitz October 5 2021"]
[White "Snehal, Bhosale"]
[Black "Tristan, Leonardo"]
[WhiteFideId "5021995"]
[BlackFideId "113816"]
[WhiteElo "2103"]
[BlackElo "2404"]
[Result "0-1"]
[Round "02"]
[TimeControl "180+1"]
[Date "2021.10.05"]
[WhiteClock "0:01:22"]
[BlackClock "0:00:56"]

1. d4 {[%clk 0:03:00]}  d5 {[%clk 0:03:00]} 2. c4 {[%clk 0:03:00]}  e6 {[%clk 0:03:00]} 3. Nc3 {[%clk 0:03:00]}  a6 {[%clk 0:03:01]} 4. cxd5 {[%clk 0:02:54]}  exd5 {[%clk 0:03:01]} 5. Nf3 {[%clk 0:02:54]}  Nf6 {[%clk 0:03:02]} 6. Bg5 {[%clk 0:02:54]}  Be6 {[%clk 0:03:01]} 7. e3 {[%clk 0:02:43]}  Nbd7 {[%clk 0:03:01]} 8. Bd3 {[%clk 0:02:43]}  Bd6 {[%clk 0:03:01]} 9. O-O {[%clk 0:02:42]}  c6 {[%clk 0:03:02]} 10. Rb1 {[%clk 0:02:39]}  Qc7 {[%clk 0:02:59]} 11. b4 {[%clk 0:02:36]}  h6 {[%clk 0:03:00]} 12. Bh4 {[%clk 0:02:34]}  O-O {[%clk 0:03:00]} 13. a4 {[%clk 0:02:33]}  b6 {[%clk 0:02:39]} 14. Qe2 {[%clk 0:02:27]}  a5 {[%clk 0:02:33]} 15. b5 {[%clk 0:02:18]}  c5 {[%clk 0:02:33]} 16. Rfc1 {[%clk 0:02:12]}  c4 {[%clk 0:02:27]} 17. Bc2 {[%clk 0:02:12]}  Ba3 {[%clk 0:02:27]} 18. Rf1 {[%clk 0:02:11]}  Bb4 {[%clk 0:02:26]} 19. Na2 {[%clk 0:02:04]}  Bd6 {[%clk 0:02:27]} 20. Nc3 {[%clk 0:01:56]}  Rfe8 {[%clk 0:02:14]} 21. Rfe1 {[%clk 0:01:46]}  Bg4 {[%clk 0:01:56]} 22. Bxf6 {[%clk 0:01:37]}  Nxf6 {[%clk 0:01:55]} 23. h3 {[%clk 0:01:36]}  Bh5 {[%clk 0:01:44]} 24. Bd1 {[%clk 0:01:31]}  Bg6 {[%clk 0:01:25]} 25. Rc1 {[%clk 0:01:24]}  Ba3 {[%clk 0:01:25]} 26. Ra1 {[%clk 0:01:24]}  Bb4 {[%clk 0:01:26]} 27. Qb2 {[%clk 0:01:23]}  Ne4 {[%clk 0:01:24]} 28. Nxd5 {[%clk 0:01:22]}  Qd6 {[%clk 0:00:55]} 29. Nxb4 {[%clk 0:01:22]}  Qxb4 {[%clk 0:00:56]} 30. Bc2 {[%clk 0:01:22]}  Qxb2 {[%clk 0:00:56]} 0-1


[Site "https://www.chess.com"]

[Event "Titled Tuesday Blitz October 5 2021"]
[White "Sorokin, Aleksey"]
[Black "Roman, Rodrigo"]
[WhiteFideId "24176460"]
[BlackFideId "3701220"]
[WhiteElo "2476"]
[BlackElo "2036"]
[Result "1-0"]
[Round "02"]
[TimeControl "180+1"]
[Date "2021.10.05"]
[WhiteClock "0:00:45"]
[BlackClock "0:00:15"]

1. d4 {[%clk 0:03:00]}  a6 {[%clk 0:02:54]} 2. c4 {[%clk 0:02:59]}  b5 {[%clk 0:02:54]} 3. cxb5 {[%clk 0:02:58]}  axb5 {[%clk 0:02:55]} 4. e4 {[%clk 0:02:57]}  Bb7 {[%clk 0:02:55]} 5. Nd2 {[%clk 0:02:57]}  Nf6 {[%clk 0:02:52]} 6. e5 {[%clk 0:02:53]}  Ne4 {[%clk 0:02:52]} 7. Nxe4 {[%clk 0:02:50]}  Bxe4 {[%clk 0:02:53]} 8. Ne2 {[%clk 0:02:49]}  b4 {[%clk 0:02:48]} 9. Ng3 {[%clk 0:02:46]}  Bd5 {[%clk 0:02:42]} 10. a3 {[%clk 0:02:42]}  e6 {[%clk 0:02:41]} 11. f3 {[%clk 0:02:40]}  Nc6 {[%clk 0:02:21]} 12. Kf2 {[%clk 0:02:38]}  f6 {[%clk 0:02:18]} 13. exf6 {[%clk 0:02:31]}  Qxf6 {[%clk 0:02:19]} 14. Be3 {[%clk 0:02:29]}  bxa3 {[%clk 0:02:17]} 15. bxa3 {[%clk 0:02:29]}  Bxa3 {[%clk 0:01:59]} 16. Qd3 {[%clk 0:02:18]}  Qe7 {[%clk 0:01:58]} 17. Bc1 {[%clk 0:02:10]}  Nb4 {[%clk 0:01:54]} 18. Qc3 {[%clk 0:02:03]}  Na2 {[%clk 0:01:21]} 19. Rxa2 {[%clk 0:01:44]}  Bxa2 {[%clk 0:01:19]} 20. Be3 {[%clk 0:01:38]}  Bd6 {[%clk 0:01:12]} 21. Ne4 {[%clk 0:01:35]}  O-O {[%clk 0:01:10]} 22. Bd3 {[%clk 0:01:31]}  Bd5 {[%clk 0:01:09]} 23. Bg5 {[%clk 0:01:23]}  Qe8 {[%clk 0:00:55]} 24. Nxd6 {[%clk 0:01:17]}  cxd6 {[%clk 0:00:55]} 25. Rf1 {[%clk 0:01:11]}  Qh5 {[%clk 0:00:55]} 26. Be7 {[%clk 0:01:04]}  Rxf3+ {[%clk 0:00:42]} 27. gxf3 {[%clk 0:00:58]}  Qxf3+ {[%clk 0:00:25]} 28. Ke1 {[%clk 0:00:58]}  Qe3+ {[%clk 0:00:25]} 29. Kd1 {[%clk 0:00:59]}  Ra1+ {[%clk 0:00:19]} 30. Kc2 {[%clk 0:00:46]}  Ra2+ {[%clk 0:00:15]} 31. Kb1 {[%clk 0:00:45]} 1-0


[Site "https://www.chess.com"]

[Event "Titled Tuesday Blitz October 5 2021"]
[White "Stribuk, Artiom"]
[Black "Atanasov, Anthony"]
[WhiteFideId "13515659"]
[BlackFideId "2623897"]
[WhiteElo "2224"]
[BlackElo "1928"]
[Result "1-0"]
[Round "02"]
[TimeControl "180+1"]
[Date "2021.10.05"]
[WhiteClock "0:00:24"]
[BlackClock "0:00:05"]

1. d4 {[%clk 0:03:00]}  e5 {[%clk 0:02:58]} 2. dxe5 {[%clk 0:03:00]}  Nc6 {[%clk 0:02:56]} 3. Nf3 {[%clk 0:03:00]}  Qe7 {[%clk 0:02:56]} 4. Bf4 {[%clk 0:02:53]}  Qb4+ {[%clk 0:02:56]} 5. Bd2 {[%clk 0:02:53]}  Qxb2 {[%clk 0:02:54]} 6. Nc3 {[%clk 0:02:54]}  Bb4 {[%clk 0:02:55]} 7. Rb1 {[%clk 0:02:54]}  Qxc3 {[%clk 0:02:55]} 8. Bxc3 {[%clk 0:02:55]}  Bxc3+ {[%clk 0:02:56]} 9. Nd2 {[%clk 0:02:55]}  Nxe5 {[%clk 0:02:56]} 10. e3 {[%clk 0:02:56]}  Nf6 {[%clk 0:02:56]} 11. Be2 {[%clk 0:02:56]}  Ne4 {[%clk 0:02:56]} 12. Rb3 {[%clk 0:02:23]}  Bxd2+ {[%clk 0:02:52]} 13. Kf1 {[%clk 0:02:24]}  Ba5 {[%clk 0:02:14]} 14. Qd5 {[%clk 0:02:11]}  Nd2+ {[%clk 0:02:00]} 15. Kg1 {[%clk 0:02:10]}  Nc6 {[%clk 0:01:40]} 16. Rb5 {[%clk 0:02:03]}  Bc3 {[%clk 0:01:17]} 17. Qd3 {[%clk 0:02:00]}  a6 {[%clk 0:01:00]} 18. Qxc3 {[%clk 0:02:00]}  axb5 {[%clk 0:01:00]} 19. Qxd2 {[%clk 0:02:00]}  Rxa2 {[%clk 0:00:58]} 20. Bxb5 {[%clk 0:02:01]}  O-O {[%clk 0:00:31]} 21. h3 {[%clk 0:02:00]}  Rb2 {[%clk 0:00:21]} 22. Bd3 {[%clk 0:01:55]}  d6 {[%clk 0:00:17]} 23. Kh2 {[%clk 0:01:55]}  Be6 {[%clk 0:00:18]} 24. Qc3 {[%clk 0:01:55]}  Rb4 {[%clk 0:00:16]} 25. Ra1 {[%clk 0:01:52]}  h6 {[%clk 0:00:13]} 26. Be2 {[%clk 0:01:34]}  d5 {[%clk 0:00:13]} 27. Ra3 {[%clk 0:01:05]}  Rd8 {[%clk 0:00:12]} 28. Bf3 {[%clk 0:01:01]}  Rc4 {[%clk 0:00:12]} 29. Qb2 {[%clk 0:01:02]}  b6 {[%clk 0:00:10]} 30. Rc3 {[%clk 0:01:02]}  Ne5 {[%clk 0:00:08]} 31. Be2 {[%clk 0:00:55]}  b5 {[%clk 0:00:01]} 32. Bxc4 {[%clk 0:00:52]}  bxc4 {[%clk 0:00:02]} 33. Ra3 {[%clk 0:00:50]}  f6 {[%clk 0:00:02]} 34. Ra7 {[%clk 0:00:50]}  c5 {[%clk 0:00:02]} 35. Qb6 {[%clk 0:00:48]}  Re8 {[%clk 0:00:01]} 36. Qxc5 {[%clk 0:00:48]}  Bf7 {[%clk 0:00:01]} 37. Qc7 {[%clk 0:00:46]}  Rf8 {[%clk 0:00:01]} 38. f4 {[%clk 0:00:46]}  Ng6 {[%clk 0:00:01]} 39. Qd7 {[%clk 0:00:42]}  Nh4 {[%clk 0:00:02]} 40. Kg1 {[%clk 0:00:33]}  c3 {[%clk 0:00:02]} 41. Rc7 {[%clk 0:00:31]}  Ng6 {[%clk 0:00:02]} 42. Rxc3 {[%clk 0:00:31]}  Re8 {[%clk 0:00:03]} 43. Rc7 {[%clk 0:00:31]}  Nh8 {[%clk 0:00:02]} 44. Kf2 {[%clk 0:00:27]}  Re4 {[%clk 0:00:01]} 45. Rc8+ {[%clk 0:00:24]}  Kh7 {[%clk 0:00:02]} 46. Rxh8+ {[%clk 0:00:25]}  Kxh8 {[%clk 0:00:02]} 47. Qxf7 {[%clk 0:00:26]}  Rc4 {[%clk 0:00:01]} 48. Qxd5 {[%clk 0:00:22]}  Rxc2+ {[%clk 0:00:01]} 49. Kf3 {[%clk 0:00:23]}  Rc8 {[%clk 0:00:02]} 50. g4 {[%clk 0:00:23]}  f5 {[%clk 0:00:02]} 51. gxf5 {[%clk 0:00:23]}  h5 {[%clk 0:00:02]} 52. f6 {[%clk 0:00:23]}  gxf6 {[%clk 0:00:02]} 53. Qxh5+ {[%clk 0:00:23]}  Kg8 {[%clk 0:00:03]} 54. Qg4+ {[%clk 0:00:24]}  Kf7 {[%clk 0:00:03]} 55. Qxc8 {[%clk 0:00:25]}  f5 {[%clk 0:00:04]} 56. h4 {[%clk 0:00:25]}  Kg7 {[%clk 0:00:05]} 57. h5 {[%clk 0:00:24]}  Kh6 {[%clk 0:00:05]} 58. Qh8# {[%clk 0:00:24]} 1-0


[Site "https://www.chess.com"]

[Event "Titled Tuesday Blitz October 5 2021"]
[White "Tabatabaei, M. Amin"]
[Black "Weetik, Vjacheslav"]
[WhiteFideId "12521213"]
[BlackFideId "4153472"]
[WhiteElo "2555"]
[BlackElo "2469"]
[Result "1-0"]
[Round "02"]
[TimeControl "180+1"]
[Date "2021.10.05"]
[WhiteClock "0:00:39"]
[BlackClock "0:00:21"]

1. b3 {[%clk 0:03:00]}  d5 {[%clk 0:02:59]} 2. Bb2 {[%clk 0:03:00]}  Bg4 {[%clk 0:02:59]} 3. f3 {[%clk 0:03:00]}  Bh5 {[%clk 0:02:59]} 4. h4 {[%clk 0:02:59]}  f6 {[%clk 0:02:58]} 5. d4 {[%clk 0:02:49]}  e5 {[%clk 0:02:50]} 6. dxe5 {[%clk 0:02:45]}  Nc6 {[%clk 0:02:49]} 7. e6 {[%clk 0:02:25]}  Qd6 {[%clk 0:02:25]} 8. Nh3 {[%clk 0:02:24]}  Qg3+ {[%clk 0:02:22]} 9. Nf2 {[%clk 0:02:24]}  Bc5 {[%clk 0:02:21]} 10. e3 {[%clk 0:02:24]}  Bxe3 {[%clk 0:02:18]} 11. Qe2 {[%clk 0:02:24]}  Nd4 {[%clk 0:01:38]} 12. Bxd4 {[%clk 0:02:19]}  Bxd4 {[%clk 0:01:39]} 13. c3 {[%clk 0:02:19]}  Bb6 {[%clk 0:01:13]} 14. Rh3 {[%clk 0:02:03]}  Qd6 {[%clk 0:01:03]} 15. g4 {[%clk 0:01:23]}  Bg6 {[%clk 0:01:02]} 16. h5 {[%clk 0:01:24]}  Bxb1 {[%clk 0:01:01]} 17. Rxb1 {[%clk 0:01:25]}  O-O-O {[%clk 0:00:57]} 18. Kd2 {[%clk 0:01:16]}  Ne7 {[%clk 0:00:56]} 19. Nd3 {[%clk 0:01:14]}  Rhe8 {[%clk 0:00:53]} 20. f4 {[%clk 0:01:06]}  f5 {[%clk 0:00:36]} 21. Re1 {[%clk 0:00:52]}  g6 {[%clk 0:00:29]} 22. hxg6 {[%clk 0:00:50]}  Nxg6 {[%clk 0:00:24]} 23. gxf5 {[%clk 0:00:43]}  Nxf4 {[%clk 0:00:24]} 24. Qh2 {[%clk 0:00:38]}  Nxh3 {[%clk 0:00:21]} 25. Qxd6 {[%clk 0:00:38]}  Rxd6 {[%clk 0:00:21]} 26. Bxh3 {[%clk 0:00:39]} 1-0


[Site "https://www.chess.com"]

[Event "Titled Tuesday Blitz October 5 2021"]
[White "Timmermans, Mark"]
[Black "Seul, Georg"]
[WhiteFideId "1026399"]
[BlackFideId "4601653"]
[WhiteElo "2460"]
[BlackElo "2332"]
[Result "1-0"]
[Round "02"]
[TimeControl "180+1"]
[Date "2021.10.05"]
[WhiteClock "0:00:47"]
[BlackClock "0:00:12"]

1. b4 {[%clk 0:03:00]}  e5 {[%clk 0:02:58]} 2. Bb2 {[%clk 0:02:58]}  Bxb4 {[%clk 0:02:56]} 3. Bxe5 {[%clk 0:02:58]}  Nf6 {[%clk 0:02:56]} 4. Nc3 {[%clk 0:02:58]}  O-O {[%clk 0:02:54]} 5. Bxf6 {[%clk 0:02:57]}  Qxf6 {[%clk 0:02:52]} 6. Nd5 {[%clk 0:02:57]}  Qd6 {[%clk 0:02:48]} 7. c4 {[%clk 0:02:57]}  Ba5 {[%clk 0:02:38]} 8. e3 {[%clk 0:02:57]}  c6 {[%clk 0:02:34]} 9. Nf4 {[%clk 0:02:56]}  Qh6 {[%clk 0:02:25]} 10. Be2 {[%clk 0:02:51]}  Bc7 {[%clk 0:02:21]} 11. Nh5 {[%clk 0:02:51]}  d5 {[%clk 0:02:10]} 12. cxd5 {[%clk 0:02:50]}  cxd5 {[%clk 0:02:10]} 13. Ng3 {[%clk 0:02:51]}  Nc6 {[%clk 0:02:09]} 14. Nf3 {[%clk 0:02:51]}  d4 {[%clk 0:02:07]} 15. O-O {[%clk 0:02:49]}  dxe3 {[%clk 0:02:05]} 16. dxe3 {[%clk 0:02:50]}  Be6 {[%clk 0:02:00]} 17. Qc2 {[%clk 0:02:32]}  Rac8 {[%clk 0:01:55]} 18. Qb2 {[%clk 0:02:30]}  Bb6 {[%clk 0:01:42]} 19. Rac1 {[%clk 0:02:29]}  Rfd8 {[%clk 0:01:39]} 20. Rfd1 {[%clk 0:02:28]}  Rxd1+ {[%clk 0:01:31]} 21. Rxd1 {[%clk 0:02:29]}  Qf6 {[%clk 0:01:23]} 22. Qxf6 {[%clk 0:02:28]}  gxf6 {[%clk 0:01:23]} 23. Rc1 {[%clk 0:02:29]}  Kf8 {[%clk 0:01:19]} 24. a4 {[%clk 0:02:28]}  Ke7 {[%clk 0:01:13]} 25. Nh4 {[%clk 0:02:26]}  Ne5 {[%clk 0:01:09]} 26. Nhf5+ {[%clk 0:02:21]}  Kf8 {[%clk 0:01:09]} 27. Rxc8+ {[%clk 0:02:20]}  Bxc8 {[%clk 0:01:08]} 28. Nd6 {[%clk 0:02:21]}  Bd7 {[%clk 0:01:08]} 29. Bb5 {[%clk 0:02:20]}  Bc6 {[%clk 0:00:59]} 30. Kf1 {[%clk 0:01:59]}  Ke7 {[%clk 0:00:58]} 31. Nc8+ {[%clk 0:01:59]}  Ke6 {[%clk 0:00:54]} 32. Nxb6 {[%clk 0:01:59]}  axb6 {[%clk 0:00:54]} 33. Ne2 {[%clk 0:01:47]}  Kd5 {[%clk 0:00:52]} 34. Nd4 {[%clk 0:01:41]}  Kc5 {[%clk 0:00:50]} 35. Nb3+ {[%clk 0:01:09]}  Kb4 {[%clk 0:00:48]} 36. Nd4 {[%clk 0:01:09]}  Kc5 {[%clk 0:00:31]} 37. g3 {[%clk 0:01:09]}  Nc4 {[%clk 0:00:31]} 38. Ke2 {[%clk 0:01:07]}  Nb2 {[%clk 0:00:28]} 39. Kd2 {[%clk 0:01:03]}  Nxa4 {[%clk 0:00:24]} 40. Bd3 {[%clk 0:01:04]}  b5 {[%clk 0:00:23]} 41. Bxh7 {[%clk 0:01:03]}  b4 {[%clk 0:00:23]} 42. h4 {[%clk 0:01:02]}  Bd5 {[%clk 0:00:21]} 43. h5 {[%clk 0:00:59]}  b3 {[%clk 0:00:21]} 44. h6 {[%clk 0:00:55]}  b2 {[%clk 0:00:21]} 45. Bb1 {[%clk 0:00:49]}  Kb4 {[%clk 0:00:16]} 46. h7 {[%clk 0:00:49]}  Nc3 {[%clk 0:00:16]} 47. h8=Q {[%clk 0:00:47]}  Nxb1+ {[%clk 0:00:12]} 48. Kc2 {[%clk 0:00:47]} 1-0


[Site "https://www.chess.com"]

[Event "Titled Tuesday Blitz October 5 2021"]
[White "Trent, Lawrence"]
[Black "Terry, Renato"]
[WhiteFideId "408638"]
[BlackFideId "3803457"]
[WhiteElo "2474"]
[BlackElo "2577"]
[Result "1-0"]
[Round "02"]
[TimeControl "180+1"]
[Date "2021.10.05"]
[WhiteClock "0:00:17"]
[BlackClock "0:00:02"]

1. d4 {[%clk 0:03:00]}  d5 {[%clk 0:02:58]} 2. Nc3 {[%clk 0:03:00]}  e6 {[%clk 0:02:58]} 3. e4 {[%clk 0:02:58]}  Nf6 {[%clk 0:02:58]} 4. Bg5 {[%clk 0:02:58]}  Bb4 {[%clk 0:02:57]} 5. e5 {[%clk 0:02:57]}  h6 {[%clk 0:02:58]} 6. Be3 {[%clk 0:02:56]}  Ne4 {[%clk 0:02:58]} 7. Ne2 {[%clk 0:02:55]}  c5 {[%clk 0:02:56]} 8. a3 {[%clk 0:02:54]}  Nxc3 {[%clk 0:02:41]} 9. Nxc3 {[%clk 0:02:46]}  cxd4 {[%clk 0:02:32]} 10. Bxd4 {[%clk 0:02:46]}  Be7 {[%clk 0:02:31]} 11. f4 {[%clk 0:02:46]}  Nc6 {[%clk 0:02:31]} 12. Bf2 {[%clk 0:02:46]}  g5 {[%clk 0:02:30]} 13. Bb5 {[%clk 0:02:42]}  gxf4 {[%clk 0:02:27]} 14. O-O {[%clk 0:02:43]}  Rg8 {[%clk 0:02:23]} 15. Qh5 {[%clk 0:02:40]}  Bd7 {[%clk 0:02:20]} 16. Qxh6 {[%clk 0:02:33]}  f3 {[%clk 0:02:03]} 17. Bg3 {[%clk 0:02:28]}  Nd4 {[%clk 0:01:58]} 18. Bd3 {[%clk 0:02:22]}  Qb6 {[%clk 0:01:54]} 19. Kh1 {[%clk 0:02:15]}  Qxb2 {[%clk 0:01:34]} 20. Na2 {[%clk 0:01:23]}  Nxc2 {[%clk 0:01:12]} 21. Bxc2 {[%clk 0:01:02]}  fxg2+ {[%clk 0:01:12]} 22. Kxg2 {[%clk 0:01:02]}  Qxc2+ {[%clk 0:01:12]} 23. Kh3 {[%clk 0:01:03]}  Bb5 {[%clk 0:00:54]} 24. Rf2 {[%clk 0:00:58]}  Qc4 {[%clk 0:00:41]} 25. Rc1 {[%clk 0:00:46]}  Qg4+ {[%clk 0:00:36]} 26. Kg2 {[%clk 0:00:46]}  Bc6 {[%clk 0:00:13]} 27. Kg1 {[%clk 0:00:44]}  Bg5 {[%clk 0:00:08]} 28. Qh7 {[%clk 0:00:42]}  Bxc1 {[%clk 0:00:08]} 29. Qxf7+ {[%clk 0:00:42]}  Kd8 {[%clk 0:00:08]} 30. Nxc1 {[%clk 0:00:40]}  Qg6 {[%clk 0:00:04]} 31. Qf4 {[%clk 0:00:34]}  Kd7 {[%clk 0:00:03]} 32. Qb4 {[%clk 0:00:29]}  Rae8 {[%clk 0:00:02]} 33. Nb3 {[%clk 0:00:29]}  Qg4 {[%clk 0:00:02]} 34. Nd4 {[%clk 0:00:26]}  Kc8 {[%clk 0:00:02]} 35. Qc5 {[%clk 0:00:20]}  Qd1+ {[%clk 0:00:02]} 36. Rf1 {[%clk 0:00:20]}  Qa4 {[%clk 0:00:02]} 37. Rc1 {[%clk 0:00:19]}  Rg7 {[%clk 0:00:02]} 38. Nb5 {[%clk 0:00:18]}  Kb8 {[%clk 0:00:01]} 39. Qd6+ {[%clk 0:00:19]}  Ka8 {[%clk 0:00:01]} 40. Rxc6 {[%clk 0:00:19]}  bxc6 {[%clk 0:00:01]} 41. Qxc6+ {[%clk 0:00:19]}  Kb8 {[%clk 0:00:01]} 42. Qxe8+ {[%clk 0:00:19]}  Kb7 {[%clk 0:00:02]} 43. Nd6+ {[%clk 0:00:17]}  Kb6 {[%clk 0:00:02]} 44. Qxa4 {[%clk 0:00:17]} 1-0


[Site "https://www.chess.com"]